Workbook

Sheet Tabelle1
A1: Fahrplanprognose gem. § § 23c EnWG
B2: SLS | C2: TLS | D2: Gesamt
A5: 2021-01-01 | B5: 12925.74698 | C5: 2357.099395 | D5: =B5+C5 -> 15282.84638
A6: 2021-01-01T00:15:00 | B6: 12550.93629 | C6: 2387.750488 | D6: =B6+C6 -> 14938.68678
A7: 2021-01-01T00:30:00 | B7: 12112.82171 | C7: 2500.137835 | D7: 14612.95954
A8: 2021-01-01T00:45:00 | B8: 11640.69531 | C8: 2709.706166 | D8: 14350.40148
A9: 2021-01-01T01:00:00 | B9: 11398.64843 | C9: 2694.499785 | D9: 14093.14821
A10: 2021-01-01T01:15:00 | B10: 11270.09574 | C10: 2633.197598 | D10: 13903.29334
A11: 2021-01-01T01:30:00 | B11: 11046.15302 | C11: 2745.584947 | D11: 13791.73797
A12: 2021-01-01T01:45:00 | B12: 10807.46946 | C12: 2980.815026 | D12: 13788.28449
A13: 2021-01-01T02:00:00 | B13: 10716.66979 | C13: 3037.366226 | D13: 13754.03602
A14: 2021-01-01T02:15:00 | B14: 10572.75264 | C14: 3191.098383 | D14: 13763.85102
A15: 2021-01-01T02:30:00 | B15: 10566.80548 | C15: 3308.951772 | D15: 13875.75725
A16: 2021-01-01T02:45:00 | B16: 10509.23843 | C16: 3411.598772 | D16: 13920.8372
A17: 2021-01-01T03:00:00 | B17: 10499.1602 | C17: 3457.932934 | D17: 13957.09313
A18: 2021-01-01T03:15:00 | B18: 10449.72658 | C18: 3606.437416 | D18: 14056.164
A19: 2021-01-01T03:30:00 | B19: 10508.0552 | C19: 3555.590602 | D19: 14063.6458
A20: 2021-01-01T03:45:00 | B20: 10528.99403 | C20: 3520.426842 | D20: 14049.42087
A21: 2021-01-01T04:00:00 | B21: 10342.16292 | C21: 3674.159009 | D21: 14016.32193
A22: 2021-01-01T04:15:00 | B22: 10275.09459 | C22: 3577.454724 | D22: 13852.54931
A23: 2021-01-01T04:30:00 | B23: 10210.07123 | C23: 3521.618561 | D23: 13731.68979
A24: 2021-01-01T04:45:00 | B24: 10202.58507 | C24: 3435.1313 | D24: 13637.71637
A25: 2021-01-01T05:00:00 | B25: 10135.89212 | C25: 3414.935584 | D25: 13550.8277
A26: 2021-01-01T05:15:00 | B26: 9875.679943 | C26: 3389.750524 | D26: 13265.43047
A27: 2021-01-01T05:30:00 | B27: 9548.835443 | C27: 3231.744041 | D27: 12780.57948
A28: 2021-01-01T05:45:00 | B28: 9142.195468 | C28: 2450.498606 | D28: 11592.69407
A29: 2021-01-01T06:00:00 | B29: 8810.758144 | C29: 1924.678968 | D29: 10735.43711
A30: 2021-01-01T06:15:00 | B30: 8934.155688 | C30: 1638.840424 | D30: 10572.99611
A31: 2021-01-01T06:30:00 | B31: 8940.438836 | C31: 1664.502173 | D31: 10604.94101
A32: 2021-01-01T06:45:00 | B32: 9031.956816 | C32: 1843.419408 | D32: 10875.37622
A33: 2021-01-01T07:00:00 | B33: 9403.04687 | C33: 1879.059843 | D33: 11282.10671
A34: 2021-01-01T07:15:00 | B34: 9758.541528 | C34: 1945.351382 | D34: 11703.89291
A35: 2021-01-01T07:30:00 | B35: 10225.93493 | C35: 2006.415232 | D35: 12232.35016
A36: 2021-01-01T07:45:00 | B36: 10701.83284 | C36: 2123.553586 | D36: 12825.38643
A37: 2021-01-01T08:00:00 | B37: 11478.49278 | C37: 1954.615044 | D37: 13433.10782
A38: 2021-01-01T08:15:00 | B38: 11516.67779 | C38: 1974.572417 | D38: 13491.25021
A39: 2021-01-01T08:30:00 | B39: 12211.85278 | C39: 2091.472432 | D39: 14303.32521
A40: 2021-01-01T08:45:00 | B40: 12860.64115 | C40: 2137.091553 | D40: 14997.7327
A41: 2021-01-01T09:00:00 | B41: 13579.85055 | C41: 2070.323335 | D41: 15650.17389
A42: 2021-01-01T09:15:00 | B42: 14418.57459 | C42: 1993.338076 | D42: 16411.91267
A43: 2021-01-01T09:30:00 | B43: 14928.82706 | C43: 2023.512489 | D43: 16952.33955
A44: 2021-01-01T09:45:00 | B44: 15439.20327 | C44: 1951.516576 | D44: 17390.71985
A45: 2021-01-01T10:00:00 | B45: 15902.68055 | C45: 1894.012008 | D45: 17796.69256
A46: 2021-01-01T10:15:00 | B46: 16306.23808 | C46: 1806.571381 | D46: 18112.80946
A47: 2021-01-01T10:30:00 | B47: 16672.98908 | C47: 1892.3436 | D47: 18565.33268
A48: 2021-01-01T10:45:00 | B48: 16882.4835 | C48: 1891.390237 | D48: 18773.87374
A49: 2021-01-01T11:00:00 | B49: 16945.06151 | C49: 1297.563061 | D49: 18242.62457
A50: 2021-01-01T11:15:00 | B50: 17605.73714 | C50: 970.618035 | D50: 18576.35518
A51: 2021-01-01T11:30:00 | B51: 17927.09029 | C51: 991.052102 | D51: 18918.14239
A52: 2021-01-01T11:45:00 | B52: 18123.86198 | C52: 1062.571329 | D52: 19186.43331
A53: 2021-01-01T12:00:00 | B53: 18467.25687 | C53: 1103.439456 | D53: 19570.69633
A54: 2021-01-01T12:15:00 | B54: 18447.03428 | C54: 1185.175709 | D54: 19632.20999
A55: 2021-01-01T12:30:00 | B55: 18310.63488 | C55: 1154.524614 | D55: 19465.15949
A56: 2021-01-01T12:45:00 | B56: 18050.02353 | C56: 1402.355159 | D56: 19452.37869
A57: 2021-01-01T13:00:00 | B57: 17845.13694 | C57: 2364.249693 | D57: 20209.38663
A58: 2021-01-01T13:15:00 | B58: 17728.49051 | C58: 2605.660835 | D58: 20334.15134
A59: 2021-01-01T13:30:00 | B59: 17724.24587 | C59: 2401.320194 | D59: 20125.56606
A60: 2021-01-01T13:45:00 | B60: 17462.93647 | C60: 2680.500995 | D60: 20143.43746
A61: 2021-01-01T14:00:00 | B61: 17571.85102 | C61: 2219.066157 | D61: 19790.91718
A62: 2021-01-01T14:15:00 | B62: 17365.93088 | C62: 2228.091472 | D62: 19594.02235
A63: 2021-01-01T14:30:00 | B63: 17133.71453 | C63: 2436.229734 | D63: 19569.94426
A64: 2021-01-01T14:45:00 | B64: 17084.28268 | C64: 2491.827556 | D64: 19576.11024
A65: 2021-01-01T15:00:00 | B65: 16978.93919 | C65: 2603.738221 | D65: 19582.67741
A66: 2021-01-01T15:15:00 | B66: 16801.45355 | C66: 2547.425373 | D66: 19348.87892
A67: 2021-01-01T15:30:00 | B67: 16760.30832 | C67: 2536.969997 | D67: 19297.27832
A68: 2021-01-01T15:45:00 | B68: 16652.40328 | C68: 2684.759448 | D68: 19337.16273
A69: 2021-01-01T16:00:00 | B69: 17148.16535 | C69: 2423.867614 | D69: 19572.03296
A70: 2021-01-01T16:15:00 | B70: 17675.6946 | C70: 2301.024885 | D70: =B70+C70 -> 19976.71948
A71: 2021-01-01T16:30:00 | B71: 17947.34445 | C71: 2489.682463 | D71: 20437.02691
A72: 2021-01-01T16:45:00 | B72: 18832.11674 | C72: 2755.325294 | D72: 21587.44203
A73: 2021-01-01T17:00:00 | B73: 19931.77658 | C73: 2550.984656 | D73: 22482.76124
A74: 2021-01-01T17:15:00 | B74: 20722.30669 | C74: 2515.105872 | D74: 23237.41256
A75: 2021-01-01T17:30:00 | B75: 21301.21174 | C75: 2418.163244 | D75: 23719.37498
A76: 2021-01-01T17:45:00 | B76: 21463.34337 | C76: 2586.625096 | D76: 24049.96847
A77: 2021-01-01T18:00:00 | B77: 21709.70243 | C77: 2556.212345 | D77: 24265.91478
A78: 2021-01-01T18:15:00 | B78: 22128.81674 | C78: 2290.807852 | D78: 24419.62459
A79: 2021-01-01T18:30:00 | B79: 22006.40692 | C79: 2321.6973 | D79: 24328.10422
A80: 2021-01-01T18:45:00 | B80: 21997.89001 | C80: 2163.452471 | D80: 24161.34248
A81: 2021-01-01T19:00:00 | B81: 21779.48011 | C81: 2158.463126 | D81: 23937.94324
A82: 2021-01-01T19:15:00 | B82: 21748.19172 | C82: 2005.445994 | D82: 23753.63771
A83: 2021-01-01T19:30:00 | B83: 21398.93037 | C83: 2082.192902 | D83: 23481.12327
A84: 2021-01-01T19:45:00 | B84: 20999.68665 | C84: 1954.360831 | D84: 22954.04748
A85: 2021-01-01T20:00:00 | B85: 20403.07217 | C85: 2000.218304 | D85: 22403.29047
A86: 2021-01-01T20:15:00 | B86: 19778.9063 | C86: 2015.186333 | D86: 21794.09263
A87: 2021-01-01T20:30:00 | B87: 19589.30647 | C87: 2132.563026 | D87: 21721.8695
A88: 2021-01-01T20:45:00 | B88: 19701.02853 | C88: 2311.241922 | D88: 22012.27045
A89: 2021-01-01T21:00:00 | B89: 19500.98913 | C89: 2571.65706 | D89: 22072.64619
A90: 2021-01-01T21:15:00 | B90: 19097.19176 | C90: 2857.495621 | D90: 21954.68738
A91: 2021-01-01T21:30:00 | B91: 18721.77107 | C91: 2887.90837 | D91: 21609.67944
A92: 2021-01-01T21:45:00 | B92: 18553.45347 | C92: 2708.991137 | D92: 21262.44461
A93: 2021-01-01T22:00:00 | B93: 17768.79752 | C93: 2642.699601 | D93: 20411.49712
A94: 2021-01-01T22:15:00 | B94: 17099.42932 | C94: 2417.924899 | D94: 19517.35422
A95: 2021-01-01T22:30:00 | B95: 16146.57142 | C95: 2510.116529 | D95: 18656.68795
A96: 2021-01-01T22:45:00 | B96: 15330.70124 | C96: 2464.259051 | D96: 17794.96029
A97: 2021-01-01T23:00:00 | B97: 14184.34317 | C97: 2642.937944 | D97: 16827.28111
A98: 2021-01-01T23:15:00 | B98: 13429.26212 | C98: 2474.476089 | D98: 15903.73821
A99: 2021-01-01T23:30:00 | B99: 12643.27257 | C99: 2530.788939 | D99: 15174.06151
A100: 2021-01-01T23:45:00 | B100: 11978.76769 | C100: 2545.692835 | D100: 14524.46053
A101: 2021-01-02 | B101: 12267.3268 | C101: 2357.099395 | D101: 14624.4262
A102: 2021-01-02T00:15:00 | B102: 11714.16913 | C102: 2387.750488 | D102: 14101.91962
A103: 2021-01-02T00:30:00 | B103: 11203.45837 | C103: 2500.137835 | D103: 13703.5962
A104: 2021-01-02T00:45:00 | B104: 10580.05371 | C104: 2709.706166 | D104: 13289.75988
A105: 2021-01-02T01:00:00 | B105: 10222.42916 | C105: 2694.499785 | D105: 12916.92894
A106: 2021-01-02T01:15:00 | B106: 10192.08704 | C106: 2633.197598 | D106: 12825.28464
A107: 2021-01-02T01:30:00 | B107: 9948.96188 | C107: 2745.584947 | D107: 12694.54683
A108: 2021-01-02T01:45:00 | B108: 9654.218981 | C108: 2980.815026 | D108: 12635.03401
A109: 2021-01-02T02:00:00 | B109: 9606.917677 | C109: 3037.366226 | D109: 12644.2839
A110: 2021-01-02T02:15:00 | B110: 9511.933957 | C110: 3191.098383 | D110: 12703.03234
A111: 2021-01-02T02:30:00 | B111: 9576.177204 | C111: 3308.951772 | D111: 12885.12898
A112: 2021-01-02T02:45:00 | B112: 9668.895716 | C112: 3411.598772 | D112: 13080.49449
A113: 2021-01-02T03:00:00 | B113: 9707.547369 | C113: 3457.932934 | D113: 13165.4803
A114: 2021-01-02T03:15:00 | B114: 9743.287086 | C114: 3606.437416 | D114: 13349.7245
A115: 2021-01-02T03:30:00 | B115: 9859.548411 | C115: 3555.590602 | D115: 13415.13901
A116: 2021-01-02T03:45:00 | B116: 10000.50693 | C116: 3520.426842 | D116: 13520.93377
A117: 2021-01-02T04:00:00 | B117: 9973.391334 | C117: 3674.159009 | D117: 13647.55034
A118: 2021-01-02T04:15:00 | B118: 10043.04551 | C118: 3577.454724 | D118: 13620.50023
A119: 2021-01-02T04:30:00 | B119: 10077.18799 | C119: 3521.618561 | D119: 13598.80655
A120: 2021-01-02T04:45:00 | B120: 10138.7247 | C120: 3435.1313 | D120: 13573.856
A121: 2021-01-02T05:00:00 | B121: 10176.58962 | C121: 3414.935584 | D121: 13591.5252
A122: 2021-01-02T05:15:00 | B122: 10003.47538 | C122: 3389.750524 | D122: 13393.2259
A123: 2021-01-02T05:30:00 | B123: 9804.8904 | C123: 3231.744041 | D123: 13036.63444
A124: 2021-01-02T05:45:00 | B124: 9390.305565 | C124: 2450.498606 | D124: 11840.80417
A125: 2021-01-02T06:00:00 | B125: 9268.947181 | C125: 1924.678968 | D125: 11193.62615
A126: 2021-01-02T06:15:00 | B126: 9487.270535 | C126: 1638.840424 | D126: 11126.11096
A127: 2021-01-02T06:30:00 | B127: 9636.788977 | C127: 1664.502173 | D127: 11301.29115
A128: 2021-01-02T06:45:00 | B128: 9910.358469 | C128: 1843.419408 | D128: 11753.77788
A129: 2021-01-02T07:00:00 | B129: 10479.54882 | C129: 1879.059843 | D129: 12358.60866
A130: 2021-01-02T07:15:00 | B130: 11164.85126 | C130: 1945.351382 | D130: 13110.20264
A131: 2021-01-02T07:30:00 | B131: 11868.11555 | C131: 2006.415232 | D131: 13874.53078
A132: 2021-01-02T07:45:00 | B132: 12520.41454 | C132: 2123.553586 | D132: 14643.96813
A133: 2021-01-02T08:00:00 | B133: 13465.88198 | C133: 1954.615044 | D133: 15420.49702
A134: 2021-01-02T08:15:00 | B134: 13630.52303 | C134: 1974.572417 | D134: =B134+C134 -> 15605.09545
A135: 2021-01-02T08:30:00 | B135: 14381.77676 | C135: 2091.472432 | D135: 16473.24919
A136: 2021-01-02T08:45:00 | B136: 15037.67593 | C136: 2137.091553 | D136: 17174.76748
A137: 2021-01-02T09:00:00 | B137: 15753.87786 | C137: 2070.323335 | D137: 17824.2012
A138: 2021-01-02T09:15:00 | B138: 16434.81653 | C138: 1993.338076 | D138: 18428.15461
A139: 2021-01-02T09:30:00 | B139: 16878.51378 | C139: 2023.512489 | D139: 18902.02627
A140: 2021-01-02T09:45:00 | B140: 17211.81027 | C140: 1951.516576 | D140: 19163.32685
A141: 2021-01-02T10:00:00 | B141: 17568.69589 | C141: 1894.012008 | D141: 19462.7079
A142: 2021-01-02T10:15:00 | B142: 17861.43631 | C142: 1806.571381 | D142: 19668.00769
A143: 2021-01-02T10:30:00 | B143: 17871.23197 | C143: 1892.3436 | D143: 19763.57557
A144: 2021-01-02T10:45:00 | B144: 17926.0232 | C144: 1891.390237 | D144: 19817.41344
A145: 2021-01-02T11:00:00 | B145: 17972.17216 | C145: 1297.563061 | D145: 19269.73522
A146: 2021-01-02T11:15:00 | B146: 18337.9741 | C146: 970.618035 | D146: 19308.59213
A147: 2021-01-02T11:30:00 | B147: 18394.93957 | C147: 991.052102 | D147: 19385.99167
A148: 2021-01-02T11:45:00 | B148: 18509.65002 | C148: 1062.571329 | D148: 19572.22135
A149: 2021-01-02T12:00:00 | B149: 18638.12361 | C149: 1103.439456 | D149: 19741.56307
A150: 2021-01-02T12:15:00 | B150: 18658.72887 | C150: 1185.175709 | D150: 19843.90458
A151: 2021-01-02T12:30:00 | B151: 18630.70985 | C151: 1154.524614 | D151: 19785.23446
A152: 2021-01-02T12:45:00 | B152: 18435.52682 | C152: 1402.355159 | D152: 19837.88198
A153: 2021-01-02T13:00:00 | B153: 18404.0236 | C153: 2364.249693 | D153: 20768.27329
A154: 2021-01-02T13:15:00 | B154: 18334.66354 | C154: 2605.660835 | D154: 20940.32438
A155: 2021-01-02T13:30:00 | B155: 18389.71303 | C155: 2401.320194 | D155: 20791.03322
A156: 2021-01-02T13:45:00 | B156: 18238.14339 | C156: 2680.500995 | D156: 20918.64438
A157: 2021-01-02T14:00:00 | B157: 18253.42534 | C157: 2219.066157 | D157: 20472.4915
A158: 2021-01-02T14:15:00 | B158: 18223.1511 | C158: 2228.091472 | D158: 20451.24257
A159: 2021-01-02T14:30:00 | B159: 18138.08989 | C159: 2436.229734 | D159: 20574.31962
A160: 2021-01-02T14:45:00 | B160: 18159.98033 | C160: 2491.827556 | D160: 20651.80789
A161: 2021-01-02T15:00:00 | B161: 18164.47334 | C161: 2603.738221 | D161: 20768.21156
A162: 2021-01-02T15:15:00 | B162: 17995.06227 | C162: 2547.425373 | D162: 20542.48764
A163: 2021-01-02T15:30:00 | B163: 17989.6609 | C163: 2536.969997 | D163: 20526.6309
A164: 2021-01-02T15:45:00 | B164: 17925.61652 | C164: 2684.759448 | D164: 20610.37597
A165: 2021-01-02T16:00:00 | B165: 18367.22681 | C165: 2423.867614 | D165: 20791.09442
A166: 2021-01-02T16:15:00 | B166: 18569.55228 | C166: 2301.024885 | D166: 20870.57716
A167: 2021-01-02T16:30:00 | B167: 18535.31259 | C167: 2489.682463 | D167: 21024.99505
A168: 2021-01-02T16:45:00 | B168: 19194.30154 | C168: 2755.325294 | D168: 21949.62683
A169: 2021-01-02T17:00:00 | B169: 20025.83667 | C169: 2550.984656 | D169: 22576.82133
A170: 2021-01-02T17:15:00 | B170: 20809.27659 | C170: 2515.105872 | D170: 23324.38246
A171: 2021-01-02T17:30:00 | B171: 21428.9601 | C171: 2418.163244 | D171: 23847.12334
A172: 2021-01-02T17:45:00 | B172: 21541.19826 | C172: 2586.625096 | D172: 24127.82336
A173: 2021-01-02T18:00:00 | B173: 21729.81902 | C173: 2556.212345 | D173: 24286.03136
A174: 2021-01-02T18:15:00 | B174: 21998.03953 | C174: 2290.807852 | D174: 24288.84738
A175: 2021-01-02T18:30:00 | B175: 21899.27417 | C175: 2321.6973 | D175: 24220.97147
A176: 2021-01-02T18:45:00 | B176: 21882.46229 | C176: 2163.452471 | D176: 24045.91476
A177: 2021-01-02T19:00:00 | B177: 21652.20956 | C177: 2158.463126 | D177: 23810.67269
A178: 2021-01-02T19:15:00 | B178: 21486.90663 | C178: 2005.445994 | D178: 23492.35262
A179: 2021-01-02T19:30:00 | B179: 21043.87028 | C179: 2082.192902 | D179: 23126.06318
A180: 2021-01-02T19:45:00 | B180: 20615.59492 | C180: 1954.360831 | D180: 22569.95575
A181: 2021-01-02T20:00:00 | B181: 20045.61201 | C181: 2000.218304 | D181: 22045.83031
A182: 2021-01-02T20:15:00 | B182: 19541.48638 | C182: 2015.186333 | D182: 21556.67271
A183: 2021-01-02T20:30:00 | B183: 19478.49722 | C183: 2132.563026 | D183: 21611.06025
A184: 2021-01-02T20:45:00 | B184: 19583.27224 | C184: 2311.241922 | D184: 21894.51416
A185: 2021-01-02T21:00:00 | B185: 19437.5554 | C185: 2571.65706 | D185: 22009.21246
A186: 2021-01-02T21:15:00 | B186: 19154.87525 | C186: 2857.495621 | D186: 22012.37087
A187: 2021-01-02T21:30:00 | B187: 18920.05674 | C187: 2887.90837 | D187: 21807.96511
A188: 2021-01-02T21:45:00 | B188: 18659.49902 | C188: 2708.991137 | D188: 21368.49016
A189: 2021-01-02T22:00:00 | B189: 18081.60087 | C189: 2642.699601 | D189: 20724.30047
A190: 2021-01-02T22:15:00 | B190: 17633.99826 | C190: 2417.924899 | D190: 20051.92316
A191: 2021-01-02T22:30:00 | B191: 16900.33491 | C191: 2510.116529 | D191: 19410.45144
A192: 2021-01-02T22:45:00 | B192: 16376.21895 | C192: 2464.259051 | D192: 18840.478
A193: 2021-01-02T23:00:00 | B193: 15375.51243 | C193: 2642.937944 | D193: 18018.45037
A194: 2021-01-02T23:15:00 | B194: 14944.68508 | C194: 2474.476089 | D194: 17419.16117
A195: 2021-01-02T23:30:00 | B195: 14197.42539 | C195: 2530.788939 | D195: 16728.21433
A196: 2021-01-02T23:45:00 | B196: 13603.43977 | C196: 2545.902835 | D196: 16149.34261
A197: 2021-01-03 | B197: 12957.69957 | C197: 2357.099395 | D197: 15314.79897
A198: 2021-01-03T00:15:00 | B198: 12581.95138 | C198: 2387.750488 | D198: =B198+C198 -> 14969.70187
A199: 2021-01-03T00:30:00 | B199: 12142.69529 | C199: 2500.137835 | D199: 14642.83312
A200: 2021-01-03T00:45:00 | B200: 11669.30264 | C200: 2709.706166 | D200: 14379.00881
A201: 2021-01-03T01:00:00 | B201: 11426.6603 | C201: 2694.499785 | D201: 14121.16008
A202: 2021-01-03T01:15:00 | B202: 11297.79851 | C202: 2633.197598 | D202: 13930.99611
... 4298 more rows
